[Event "European Women Blitz-ch 2024"]
[Site "Monaco"]
[Date "2025.01.10"]
[Round "4.17"]
[White "Alexieva, Silvia"]
[Black "Schulze, Lara"]
[Result "0-1"]
[Annotator "TA"]
[ECO "D02"]
[WhiteElo "2210"]
[BlackElo "2266"]
[PlyCount "102"]
[EventDate "2025.01.06"]
[EventType "swiss"]
[EventCountry "MNC"]
[SourceTitle "playchess.com"]
[Source "ChessBase"]
[SourceQuality "1"]
[TimeControl "180+2"]

{[%evp 11,102,-8,0,-12,-15,-25,-20,-17,-15,-19,-16,-20,-19,-45,-46,-57,-56,-115,-118,-181,-100,-217,-137,-296,-280,-306,-293,-340,-267,-327,-335,-366,-363,-495,-504,-477,-413,-422,-400,-421,-372,-322,-261,-257,-180,-495,-406,-496,-289,-608,-610,-739,-724,-801,-795,-766,-737,-829,-689,-970,-934,-968,-933,-989,-949,-1141,-1120,-1122,-1091,-1273,-1228,-1315,-1296,-6528,-1957,-5227,-29986,-5111,-2402,-2091,-1946,-5326,-5314,-5281,-2339,-3144,-2124,-29989,-2653,-29986,-29987,-29987,-29988]} 1. d4 {[%emt 0:00:02]} Nf6 {[%emt 0:03:04]} 2. Bf4 d5 {[%emt 0:00:00]} 3. e3 {[%emt 0:00:04]} e6 {[%emt 0:00:00]} 4. Bd3 {[%emt 0:00:00]} Bd6 {[%emt 0:00:00]} 5. Bg3 {[%emt 0:00:00]} O-O {[%emt 0:00:00]} 6. Nf3 {[%emt 0:00:00]} c5 {[%emt 0:00:00]} 7. c3 {[%emt 0:00:00]} Qc7 {[%emt 0:00:00]} 8. Ne5 {[%emt 0:00:06]} Nbd7 {[%emt 0:00:00]} 9. f4 {[%emt 0:00:01]} Ne4 {[%emt 0:00:00]} 10. Bxe4 {[%emt 0:00:15]} dxe4 {[%emt 0:00:00]} 11. Nd2 {[%emt 0:00:02]} f5 {[%emt 0:00:00]} 12. a4 {[%emt 0:00:08]} b6 {[%emt 0:00:00]} 13. O-O {[%emt 0:00:11]} Ba6 {[%emt 0:00:00]} 14. Rf2 {[%emt 0:00:01]} (14. Qb3 $1 $15 Rfe8 15. Nec4) 14... Nf6 $17 {[%emt 0:00:00]} 15. Bh4 {[%emt 0:00:02]} (15. Qb3 $17 Nd5 16. Ndc4 Bxe5 17. Nxe5) 15... Bxe5 {[%emt 0:00:00]} (15... cxd4 $19 16. cxd4 Bxe5 17. dxe5 Nd5) 16. fxe5 {[%emt 0:00:08]} (16. dxe5 $17 {was the only defense.} Ng4 17. Nxe4) 16... Ng4 {[%emt 0:00:00][%cal Og4e3]} 17. Qe1 $2 {[%emt 0:00:34]} (17. Nxe4 $17 Nxf2 18. Nxf2) 17... Nxf2 {[%emt 0:00:00]} 18. Qxf2 {[%emt 0:00:01]} Bd3 {[%emt 0:00:00]} 19. Qg3 {[%emt 0:00:11]} Kh8 {[%emt 0:00:00]} 20. Qh3 {[%emt 0:00:06]} Qd7 {[%emt 0:00:00]} 21. Kh1 {[%emt 0:00:05]} Rac8 {[%emt 0:00:40]} 22. Nf1 {[%emt 0:00:15]} cxd4 {[%emt 0:00:00]} 23. exd4 {[%emt 0:00:01]} f4 {[%emt 0:00:00] Repels Qg3} 24. Nd2 {[%emt 0:00:05] [#]} f3 $1 {[%emt 0:00:00]} 25. gxf3 {[%emt 0:00:01] White is weak on the light squares} (25. Kg1 fxg2) 25... exf3 {[%emt 0:00:00]} 26. Bf2 {[%emt 0:00:14]} Qf7 {[%emt 0:00:00]} 27. Rg1 {[%emt 0:00:03]} Qf4 {[%emt 0:00:00]} 28. Nb3 $2 {[%emt 0:00:08]} (28. Qg3 Rf7 (28... Qxd2 29. Qxg7#) 29. Qxf4 Rxf4 30. h3) 28... Bc2 {[%emt 0:00:00]} 29. Nc1 {[%emt 0:00:05]} Bxa4 {[%emt 0:00:00]} (29... Qd2 $142 30. Qg3 Rf7 (30... Bxa4 31. Qxg7#)) 30. Nd3 $2 {[%emt 0:00:02]} (30. Qg4 Qxg4 31. Rxg4) 30... Qd2 $19 {[%emt 0:00:00]} 31. Qg3 {[%emt 0:00:06][%csl Gg1][%cal Rg3g7]} Rc7 {[%emt 0:00:00]} (31... Qxd3 32. Qxg7#) 32. Nb4 {[%emt 0:00:05]} a5 {[%emt 0:00:00]} 33. Na6 {[%emt 0:01:06]} Rcf7 {[%emt 0:00:00][%cal Oa4b5]} 34. c4 {[%emt 0:00:00]} Qxb2 {[%emt 0:00:00]} 35. c5 {[%emt 0:00:00]} Qb5 {[%emt 0:00:00]} 36. d5 {[%emt 0:00:00]} Qxa6 {[%emt 0:00:01]} 37. dxe6 {[%emt 0:00:00]} Re7 {[%emt 0:00:04]} 38. cxb6 {[%emt 0:00:00]} Bc6 {[%emt 0:00:02]} (38... Rxe6 39. Qxg7#) 39. Qg5 {[%emt 0:00:00]} Qb7 {[%emt 0:00:03]} (39... Rxe6 40. Qxg7#) 40. h4 {[%emt 0:00:00]} Rxe6 {[%emt 0:00:01] ...Rfe8 would now be deadly.} 41. Kh2 {[%emt 0:00:00]} a4 {[%emt 0:00:03]} 42. Bc5 {[%emt 0:00:00]} Rfe8 {[%emt 0:00:01]} 43. Bd6 {[%emt 0:00:00]} f2 {[%emt 0:00:03]} (43... Qxb6 44. Qxg7#) 44. Rf1 {[%emt 0:00:00]} a3 {[%emt 0:00:05] ( -> ...Rg6)} 45. Rxf2 {[%emt 0:00:00]} Rg6 {[%emt 0:00:05]} 46. Qf5 {[%emt 0:00:00]} Bd5 {[%emt 0:00:03] ( -> ...a2)} ({Not} 46... Qxb6 47. Qf8+ Rxf8 48. Rxf8#) 47. h5 {[%emt 0:00:00]} Rh6 {[%emt 0:00:02]} 48. Qg5 {[%emt 0:00:00]} Rg8 {[%emt 0:00:02]} 49. Bf8 {[%emt 0:00:00]} Bf7 {[%emt 0:00:04]} (49... Qxb6 $142 50. Kg3 a2 51. Bxg7+ Rxg7 52. Rf8+ Bg8 53. Kh4 Qb4+ (53... a1=B {is a self mate.} 54. Rf5 Rxg5 55. Kxg5 Qe3+ 56. Kh4 Bxe5 57. Rxe5 Qxe5 58. Kg4 Bd5 59. Kh3 Rxh5+ 60. Kg4 Qg5#) (53... Rxg5 54. Kxg5 Qe3+ 55. Kg4 a1=Q 56. Rxg8+ Kxg8 57. Kf5 Qaxe5+ 58. Kg4 Qxh5#) 54. Rf4 Qe1+ (54... a1=Q 55. Qxg7+ Kxg7 56. Rxb4 Qe1+ 57. Kg4 Bd5 58. Rf4 Qg1+ 59. Kh4 Be6 60. Re4 Qh2+ 61. Kg5 Rxh5#) 55. Kg4 Qe2+ (55... a1=B 56. Rf5 Qe4+ 57. Kg3 Qxf5 58. Qxg7+ Kxg7 59. Kg2 Bd5+ 60. Kh2 Qf2+ 61. Kh3 Be6#) (55... a1=Q 56. Qxg7+ Kxg7 57. Rf5 Qd4+ 58. Kh3 Qdh4+ 59. Kg2 Qhh1#) 56. Rf3 Rxg5+ (56... a1=B 57. Qxg7+ Kxg7 58. Kg3 Bxe5+ 59. Kg4 Be6+ 60. Kg5 Qg2+ 61. Kh4 Qg4#) (56... Qe4+ 57. Kg3 Rxg5+ 58. Kf2 a1=Q 59. Rh3 Rg2#) 57. Kxg5 Qxf3 58. Kxh6 Qf4#) 50. Bxa3 {[%emt 0:00:00]} Rxh5+ {[%emt 0:00:02]} 51. Qxh5 {[%emt 0:00:00]} Bxh5 {[%emt 0:00:01]} 0-1

[Event "European Women Blitz-ch 2024"]
[Site "Monaco"]
[Date "2025.01.10"]
[Round "4.18"]
[White "Maisuradze, Nino"]
[Black "Hunt, Harriet V"]
[Result "0-1"]
[Annotator "TA"]
[ECO "E15"]
[WhiteElo "2174"]
[BlackElo "2298"]
[PlyCount "82"]
[EventDate "2025.01.06"]
[EventType "swiss"]
[EventCountry "MNC"]
[SourceTitle "playchess.com"]
[Source "ChessBase"]
[SourceQuality "1"]
[TimeControl "180+2"]

{[%evp 9,81,16,37,22,33,-66,-37,-75,-51,-76,-70,-79,-82,-83,-85,-103,-84,-94,-68,-50,-35,-55,10,-75,-26,-27,0,-5,2,-48,-27,-99,-92,-149,-153,-145,-69,-135,-137,-141,-116,-145,-146,-148,-58,-176,-171,-176,-181,-206,-199,-207,-180,-217,-188,-227,-188,-206,-208,-542,-100,-522,-131,-130,-127,-121,-103,-429,-439,-443,-424,-29991,-29992,-29999]} 1. d4 {[%emt 0:00:00]} Nf6 {[%emt 0:00:01]} 2. c4 {[%emt 0:00:01]} e6 {[%emt 0:00:00]} 3. Nf3 {[%emt 0:00:03]} b6 {[%emt 0:00:01][%cal Bb7b6,Bb6b5,Bb5b4][%mdl 32]} 4. g3 {[%emt 0:00:01]} Ba6 {[%emt 0:00:01]} 5. b3 {[%emt 0:00:02]} b5 {[%emt 0:00:00]} 6. Nbd2 {[%emt 0:00:05]} Bb4 {[%emt 0:00:05][%cal Bf8b4,Bb4c3,Bc3d4][%mdl 32]} 7. c5 {[%emt 0:00:03]} (7. Bg2 $14) 7... Bb7 {[%emt 0:00:08]} (7... Bc3 $5 8. Rb1 Bb7 $15) 8. Bg2 {[%emt 0:00:02]} Bc3 {[%emt 0:00:04] Inhibits Bb2.} 9. Rb1 {[%emt 0:00:23]} Bxd4 $1 {[%emt 0:00:07] Black has more active pieces.} (9... Bxd2+ $6 10. Bxd2 (10. Qxd2 Be4 $11) 10... h6 11. O-O $11) 10. Qc2 {[%emt 0:00:36] [#]} b4 $1 {[%emt 0:00:26]} 11. O-O {[%emt 0:00:06]} Bc3 {[%emt 0:00:01]} 12. e4 {[%emt 0:00:21]} Na6 {[%emt 0:00:14]} 13. Bb2 {[%emt 0:00:07]} Bxb2 {[%emt 0:00:03]} 14. Rxb2 {[%emt 0:00:01]} Qe7 {[%emt 0:00:07]} 15. Rc1 $1 {[%emt 0:00:01]} e5 {[%emt 0:00:09]} (15... Nb8 $15) 16. Ne1 {[%emt 0:00:48]} (16. Qc4 $11) 16... O-O {[%emt 0:00:02]} (16... Nb8 $17) 17. Nd3 {[%emt 0:00:01]} Rab8 {[%emt 0:00:09]} 18. Qc4 {[%emt 0:00:03]} Bc8 {[%emt 0:00:16]} 19. Bf1 {[%emt 0:00:17]} (19. a3 $11) 19... d6 {[%emt 0:00:11]} 20. c6 {[%emt 0:00:08]} (20. a3 $11 {keeps the balance.}) 20... Rb6 $17 {[%emt 0:00:01]} 21. f3 {[%emt 0:00:24]} ({White should play} 21. Qc2) 21... Be6 {[%emt 0:00:02]} 22. Qc2 {[%emt 0:00:01] [#]} Nc5 {[%emt 0:00:12]} 23. Nxc5 {[%emt 0:00:01]} (23. Nxe5 $1 $15 Bxb3 24. Nxb3 Qxe5 25. Qf2) 23... Rxc6 $1 {[%emt 0:00:01]} 24. Qd3 {[%emt 0:00:09] and Nxe6 should not be overlooked} dxc5 {[%emt 0:00:03]} 25. Nc4 {[%emt 0:00:02]} Rd8 {[%emt 0:00:03]} 26. Qe2 {[%emt 0:00:01]} Nd7 {[%emt 0:00:06]} ({Black should play} 26... Bxc4 $17 27. Qxc4 a6) 27. Rd2 {[%emt 0:00:02]} (27. Na5 $1 $15 Rb6 28. Qe3) 27... Bxc4 $19 {[%emt 0:00:05]} 28. Qxc4 {[%emt 0:00:01]} Rd6 {[%emt 0:00:02]} 29. Rcd1 {[%emt 0:00:03]} g6 {[%emt 0:00:03]} 30. Qc2 {[%emt 0:00:03]} Rb8 {[%emt 0:00:09]} 31. Bc4 {[%emt 0:00:03]} Rbb6 {[%emt 0:00:01]} 32. Kg2 {[%emt 0:00:01]} Kg7 {[%emt 0:00:00]} 33. Bd5 {[%emt 0:00:01]} Nf6 {[%emt 0:00:05]} 34. Qxc5 $2 {[%emt 0:00:01]} (34. Qc1) 34... Qd8 $2 {[%emt 0:00:12]} (34... c6 $19 35. Qxd6 Qxd6 36. Bxf7 Qe7) 35. Rc1 $2 {[%emt 0:00:01][%mdl 8192]} (35. Rd3 $17) 35... Nxd5 $2 {[%emt 0:00:05]} (35... c6 $19 {and Black stays clearly on top.} 36. Rcd1 cxd5 37. exd5 Rb7) 36. Rxd5 $17 {[%emt 0:00:01]} Rxd5 {[%emt 0:00:03]} 37. exd5 $19 {[%emt 0:00:02][%cal Oc1c2] KQR-KQR. Black is a pawn up.} Ra6 {[%emt 0:00:08]} 38. Qxc7 $2 {[%emt 0:00:12][%mdl 8192]} (38. Rc2 $17 {is a better chance.}) 38... Rxa2+ {[%emt 0:00:01]} 39. Kg1 {[%emt 0:00:07]} Qxd5 {[%emt 0:00:02][%cal Oh7h6] ( -> ...h6!)} 40. Qc4 {[%emt 0:00:04]} (40. Qc5 $19 Qxf3 41. Qxe5+ Qf6 (41... Kh6 $2 42. Qf4+ Qxf4 43. gxf4 $19) 42. Qxf6+ Kxf6 43. Rc6+ Kg7 44. Rc7) 40... Qd2 {[%emt 0:00:02][%csl Ga2][%cal Rd2g2]} 41. Qf1 {[%emt 0:00:02]} Qxh2# {[%emt 0:00:05]} 0-1

[Event "European Women Blitz-ch 2024"]
[Site "Monaco"]
[Date "2025.01.10"]
[Round "5.1"]
[White "Khademalsharieh, Sarasadat"]
[Black "Paehtz, Elisabeth"]
[Result "0-1"]
[Annotator "TA"]
[ECO "E62"]
[WhiteElo "2458"]
[BlackElo "2428"]
[PlyCount "116"]
[EventDate "2025.01.06"]
[EventType "swiss"]
[EventCountry "MNC"]
[SourceTitle "playchess.com"]
[Source "ChessBase"]
[SourceQuality "1"]
[TimeControl "180+2"]

{[%evp 41,116,-36,72,83,81,8,214,202,199,62,97,101,96,95,106,39,50,23,4,0,0,-9,0,-39,-13,-21,-4,-25,-8,-13,0,-16,0,-29,-25,-31,-20,-51,-13,-18,10,9,9,0,0,-8,0,0,0,0,0,0,0,0,0,0,0,0,0,-87,-87,-87,-87,-1041,-907,-989,-989,-2413,-2402,-2700,-2980,-29977,-29978,-29978,-29979,-29978,-29976]} 1. d4 {[%emt 0:00:02]} Nf6 {[%emt 0:00:01]} 2. c4 {[%emt 0:00:01]} g6 {[%emt 0:00:01]} 3. g3 {[%emt 0:00:02]} Bg7 {[%emt 0:00:01]} 4. Bg2 {[%emt 0:00:01]} O-O {[%emt 0:00:02]} 5. Nc3 {[%emt 0:00:01]} d6 {[%emt 0:00:01]} 6. Nf3 {[%emt 0:00:02]} c6 {[%emt 0:00:02]} 7. O-O {[%emt 0:00:02]} Bf5 {[%emt 0:00:01]} 8. Nh4 {[%emt 0:00:21]} Be6 {[%emt 0:00:02]} 9. d5 {[%emt 0:00:01]} cxd5 {[%emt 0:00:01]} 10. cxd5 {[%emt 0:00:02]} Bd7 {[%emt 0:00:01]} 11. e4 {[%emt 0:00:07]} Na6 {[%emt 0:00:02]} 12. Nf3 {[%emt 0:00:03]} Bg4 {[%emt 0:00:19]} 13. h3 {[%emt 0:00:06]} Bxf3 {[%emt 0:00:02]} 14. Qxf3 {[%emt 0:00:05]} Nd7 {[%emt 0:00:01]} 15. Qe2 {[%emt 0:00:06]} Rc8 {[%emt 0:00:10]} 16. Bd2 {[%emt 0:00:08]} Qb6 {[%emt 0:00:08]} 17. Be3 {[%emt 0:00:08]} Ndc5 {[%emt 0:00:09]} 18. Rab1 {[%emt 0:00:16]} Qb4 {[%emt 0:00:05]} 19. Nb5 {[%emt 0:00:21]} Qa5 {[%emt 0:00:22]} 20. b4 {[%emt 0:00:28]} Nxb4 {[%emt 0:00:05]} 21. Bd2 {[%emt 0:00:01]} Nca6 {[%emt 0:00:15] [#]} (21... Qxa2 $15 {keeps the upper hand.} 22. Rxb4 Nb3 23. Rxb3 Qxb3) 22. a3 $1 $16 {[%emt 0:00:09]} (22. Nxa7 Rc2 23. Rfc1 (23. Rxb4 $2 Qxb4 24. Rd1 Qa4 $19) 23... Qxa2 (23... Rxa2 24. Nc8 $11) 24. Rxc2 Qxb1+ (24... Qxc2 25. Rc1 $17) 25. Rc1 Qb2 $17) 22... Rc5 {[%emt 0:00:16]} 23. Nxd6 {[%emt 0:00:27]} ({Much weaker is} 23. Nxa7 Qxa3 24. Be3 Rc2 $15) (23. Rfc1 $16 {Bf1 is the strong threat.} Qxb5 24. Qxb5 Rxb5 25. axb4) 23... exd6 $2 {[%emt 0:00:05]} (23... Qxa3 $11 24. Nc4 (24. Nxb7 Rc7 $11) 24... Qa2 (24... Qd3 25. Qxd3 Nxd3 26. Na5 $15)) 24. axb4 $18 {[%emt 0:00:01]} Qb5 {[%emt 0:00:01] [#]} 25. Qe3 {[%emt 0:00:10]} (25. Qxb5 $1 $18 Rxb5 26. Rfc1) 25... Rc2 {[%emt 0:00:09]} 26. Rfd1 {[%emt 0:00:01]} Qc4 {[%emt 0:00:36]} 27. Bf1 {[%emt 0:00:07]} (27. Qxa7 $2 {loses.} Bd4 28. Qxb7 Qe2 $19) 27... Qd4 {[%emt 0:00:06]} 28. Bxa6 {[%emt 0:00:12]} (28. Qe1 $16) 28... bxa6 $14 {[%emt 0:00:05]} 29. Qxd4 {[%emt 0:00:03]} Bxd4 {[%emt 0:00:02]} 30. Be1 {[%emt 0:00:01]} Bb6 {[%emt 0:00:02]} 31. Ra1 {[%emt 0:00:01]} Re2 {[%emt 0:00:07]} 32. Rxa6 {[%emt 0:00:03]} Rxe4 {[%emt 0:00:01]} 33. Kf1 {[%emt 0:00:02]} Rfe8 {[%emt 0:00:03]} 34. Bc3 {[%emt 0:00:04]} Rc4 {[%emt 0:00:05]} 35. Rd3 {[%emt 0:00:01]} f5 {[%emt 0:00:10]} 36. Ra2 {[%emt 0:00:02]} Kf7 {[%emt 0:00:03]} 37. Re2 {[%emt 0:00:02]} Rxe2 {[%emt 0:00:04]} 38. Kxe2 {[%emt 0:00:01]} Re4+ {[%emt 0:00:01]} 39. Kf3 {[%emt 0:00:03]} h5 {[%emt 0:00:07]} 40. Bd2 {[%emt 0:00:01]} Rd4 {[%emt 0:00:10]} 41. Rxd4 {[%emt 0:00:02]} Bxd4 {[%emt 0:00:00]} 42. Bf4 {[%emt 0:00:14]} Ke7 {[%emt 0:00:13]} 43. b5 {[%emt 0:00:01]} Bc5 {[%emt 0:00:03]} 44. Ke2 {[%emt 0:00:02]} Kf6 {[%emt 0:00:04]} 45. h4 {[%emt 0:00:02]} Ke7 {[%emt 0:00:02]} 46. f3 {[%emt 0:00:01]} Kf6 {[%emt 0:00:01]} 47. Kd3 {[%emt 0:00:01]} Ke7 {[%emt 0:00:01]} 48. Kc4 {[%emt 0:00:02]} Kd7 {[%emt 0:00:01]} 49. Kb3 {[%emt 0:00:01]} Kc7 {[%emt 0:00:01]} 50. Ka4 {[%emt 0:00:01]} (50. Kc3 $11) 50... Kb6 $17 {[%emt 0:00:00]} 51. Bd2 {[%emt 0:00:02]} Bf2 {[%emt 0:00:02]} 52. Bf4 $2 {[%emt 0:00:05][%mdl 8192]} (52. Kb4 $17) 52... Kc5 $19 {[%emt 0:00:02]} 53. Ka5 {[%emt 0:00:09]} Kxd5 {[%emt 0:00:02]} 54. Ka6 {[%emt 0:00:01]} Kc5 {[%emt 0:00:03]} 55. Bg5 {[%emt 0:00:01]} d5 {[%emt 0:00:03]} 56. Be7+ {[%emt 0:00:03]} Kc4 {[%emt 0:00:01]} 57. Bd6 {[%emt 0:00:04]} d4 {[%emt 0:00:01]} 58. Bf4 {[%emt 0:00:03]} d3 {[%emt 0:00:02]} 0-1

[Event "European Women Blitz-ch 2024"]
[Site "Monaco"]
[Date "2025.01.10"]
[Round "5.2"]
[White "Arabidze, Meri"]
[Black "Kazarian, Anna-Maja"]
[Result "1-0"]
[Annotator "TA"]
[ECO "D78"]
[WhiteElo "2457"]
[BlackElo "2206"]
[PlyCount "115"]
[EventDate "2025.01.06"]
[EventType "swiss"]
[EventCountry "MNC"]
[SourceTitle "playchess.com"]
[Source "ChessBase"]
[SourceQuality "1"]
[TimeControl "180+2"]

{[%evp 12,114,22,0,0,0,12,6,44,30,87,69,114,107,158,95,106,59,65,55,46,-8,-13,-15,-7,-8,223,0,0,-225,0,0,0,0,467,425,399,77,112,41,41,58,35,53,259,248,241,231,255,218,396,402,402,388,485,479,536,233,292,296,296,279,295,295,443,443,441,347,439,414,414,347,347,340,565,556,657,657,651,629,3228,3157,2759,2685,1222,608,2279,1743,2653,2359,29970,29971,29971,29972,29977,29978,29985,29986,29990,29990,29992,29993,29993,29994,29999]} 1. d4 {[%emt 0:00:01]} d5 {[%emt 0:00:01]} 2. c4 {[%emt 0:00:01]} c6 {[%emt 0:00:00]} 3. Nf3 {[%emt 0:00:01]} Nf6 {[%emt 0:00:02]} 4. g3 {[%emt 0:00:01]} g6 {[%emt 0:00:00]} 5. Bg2 {[%emt 0:00:05]} Bg7 {[%emt 0:00:01]} 6. O-O {[%emt 0:00:03]} O-O {[%emt 0:00:02]} 7. a4 {[%emt 0:00:00]} a5 {[%emt 0:00:07]} 8. cxd5 {[%emt 0:00:05]} cxd5 {[%emt 0:00:03]} 9. Nc3 {[%emt 0:00:03]} Ne4 {[%emt 0:00:09]} 10. Qb3 {[%emt 0:00:09]} Nxc3 {[%emt 0:00:06]} (10... Nc6 $11) 11. bxc3 $16 {[%emt 0:00:01]} Nc6 {[%emt 0:00:01]} 12. Ba3 {[%emt 0:00:14]} b6 {[%emt 0:00:10]} (12... Rb8 $142) 13. Rfb1 {[%emt 0:00:18]} (13. Rfe1) 13... Rb8 $16 {[%emt 0:00:06]} 14. Nd2 {[%emt 0:00:08]} (14. Ng5 $16) 14... Be6 $14 {[%emt 0:00:17]} 15. e3 {[%emt 0:00:02]} Qd7 {[%emt 0:00:26]} 16. c4 {[%emt 0:00:21]} (16. Qb5 $14) 16... dxc4 $1 $11 {[%emt 0:00:08]} 17. Nxc4 {[%emt 0:00:01]} Rfc8 $1 {[%emt 0:00:38]} 18. Nxb6 {[%emt 0:00:30]} Qc7 $2 {[%emt 0:00:49] [#]} (18... Nxd4 $1 $11 {and Black is okay.} 19. Nxd7 (19. exd4 Qxd4 20. Bd5 Rc6 $17) 19... Ne2+ (19... Nxb3 20. Nxb8 Bxa1 21. Nc6 $16) (19... Rxb3 20. Rxb3 Nxb3 21. Rd1 $11) 20. Kh1 Rxb3 21. Rxb3 Bxb3) 19. d5 $2 {[%emt 0:00:06]} ({Only move:} 19. Qb5 $1 $18 Nxd4 20. exd4 Bxd4 21. Nxc8 Rxb5 22. Nxe7+ Kg7 23. axb5) 19... Bf5 $11 {[%emt 0:00:16]} 20. e4 $2 {[%emt 0:00:42]} (20. dxc6 $11 {and White has nothing to worry.} Bxa1 21. Rxa1 (21. e4 $2 Be6 $19) 21... Rxb6 22. Qc3) 20... Nd4 $2 {[%emt 0:00:01]} (20... Bxa1 $19 21. dxc6 Be6) 21. Qd1 $11 {[%emt 0:00:12]} Rxb6 {[%emt 0:00:04]} 22. exf5 {[%emt 0:00:10]} Nc2 $2 {[%emt 0:00:08][%mdl 8192] [#]} (22... Nxf5 $11 23. Rc1 Qd8 24. Rxc8 Qxc8) 23. Rxb6 $1 $18 {[%emt 0:00:04]} Qxb6 {[%emt 0:00:02]} 24. Rb1 $2 {[%emt 0:00:01]} (24. Rc1 $18 {is the precise move to win.} Rc3 25. Bxe7 (25. Rxc2 Rxa3 26. Rc8+ Bf8 $16)) 24... Qf6 {[%emt 0:00:05]} 25. Bb2 {[%emt 0:00:03]} ({White should play} 25. Rc1 $16 Bh6 26. Bxe7 (26. Rxc2 Rxc2 27. Qxc2 Qa1+ 28. Bf1 Qxa3 $16) 26... Qxe7 27. Rxc2 Rxc2 28. Qxc2) 25... Qxf5 $14 {[%emt 0:00:01]} 26. Bxg7 {[%emt 0:00:03]} Kxg7 {[%emt 0:00:01]} 27. Rc1 {[%emt 0:00:09]} f6 $2 {[%emt 0:00:05]} ({Black should try} 27... h5 $1 $14) 28. g4 $18 {[%emt 0:00:06]} Qd7 {[%emt 0:00:04]} 29. Rxc2 {[%emt 0:00:03]} Qxa4 {[%emt 0:00:02]} 30. Rd2 {[%emt 0:00:01]} Qb4 $2 {[%emt 0:00:01]} (30... Qxd1+ 31. Rxd1 Kf8) 31. d6 $18 {[%emt 0:00:08]} exd6 {[%emt 0:00:02]} 32. Rxd6 {[%emt 0:00:00]} Qf4 {[%emt 0:00:02]} 33. Rd7+ {[%emt 0:00:02]} Kh6 {[%emt 0:00:02]} 34. Qd2 {[%emt 0:00:01]} (34. Rxh7+ $142 Kxh7 35. Qd7+ Kh6 36. Qxc8) 34... Rc1+ {[%emt 0:00:01]} 35. Bf1 {[%emt 0:00:01]} Qxd2 {[%emt 0:00:00]} 36. Rxd2 {[%emt 0:00:00]} Kg5 {[%emt 0:00:00]} 37. h3 {[%emt 0:00:00]} Ra1 {[%emt 0:00:05]} (37... Rc5 {keeps fighting.} 38. Rd7 h5 39. gxh5 gxh5) 38. Kg2 {[%emt 0:00:00]} a4 {[%emt 0:00:02]} 39. Bc4 {[%emt 0:00:00]} a3 {[%emt 0:00:03]} 40. Bg8 {[%emt 0:00:00]} h5 {[%emt 0:00:01]} 41. gxh5 {[%emt 0:00:00]} Kxh5 {[%emt 0:00:02]} 42. Rd5+ {[%emt 0:00:00]} g5 $2 {[%emt 0:00:05]} (42... Kh6 43. Rd7 Kg5) 43. Ra5 $18 {[%emt 0:00:00]} Kg6 {[%emt 0:00:01]} 44. Be6 {[%emt 0:00:00]} Kh6 {[%emt 0:00:03]} 45. Kf3 {[%emt 0:00:00]} Kg6 {[%emt 0:00:00]} 46. Bf5+ {[%emt 0:00:00]} Kf7 {[%emt 0:00:03]} 47. Ra7+ {[%emt 0:00:00]} Ke8 {[%emt 0:00:01]} 48. Be6 {[%emt 0:00:00]} (48. Kg4 $142 Kd8 49. Kh5) 48... Kd8 {[%emt 0:00:03]} 49. Kg4 {[%emt 0:00:09]} Re1 {[%emt 0:00:04]} 50. Kf5 {[%emt 0:00:13]} Re2 {[%emt 0:00:01]} 51. Kxf6 {[%emt 0:00:02]} Rxf2+ {[%emt 0:00:01]} 52. Kxg5 {[%emt 0:00:01]} Rf3 {[%emt 0:00:03]} 53. h4 {[%emt 0:00:05]} Ke8 {[%emt 0:00:01]} 54. h5 {[%emt 0:00:04]} Kf8 {[%emt 0:00:01]} 55. h6 {[%emt 0:00:03]} Rg3+ {[%emt 0:00:01]} 56. Kf6 {[%emt 0:00:04]} Rf3+ {[%emt 0:00:03]} 57. Bf5 {[%emt 0:00:01]} Ke8 {[%emt 0:00:05]} 58. Ra8# {[%emt 0:00:01]} 1-0